Cogmind - Beta 17.1 @@@ ROGUE MODE // 2026.09.13 @ 23:12:13 Player: pirluit Result: Destroyed by Y-54 Guardian with Gatling Laser Performance ------------- Evolutions (4) 2000 Regions Visited (10) 2000 Robots Destroyed (96) 480 Value Destroyed (3183) 3183 Prototype IDs (6) 120 Alien Tech Used (0) 0 Bonus (-25) -25 TOTAL SCORE: 7758 Bonus ------- Friendly Fire -25 Cogmind --------- Core Integrity 0/850 Matter 300/300 Energy 99/100 System Corruption 7% Temperature Cool (6) Movement Core (50) Location -6/Factory Parts ------- > --- POWER (2) -------- (None) > --- PROPULSION (4) --- (None) > --- UTILITY (6) ------ Visual Processing Unit Target Analyzer Core Analyzer > --- WEAPON (3) ------- (None) > --- INVENTORY (5) ---- Drone Bay (0/2) Shock Rifle Shock Rifle Heavy EM Shotgun Chainsword Peak State ------------ > --- POWER ------------ Micro Nuclear Core Light Angular Momentum Engine > --- PROPULSION ------- Compact Wheel Compact Wheel Gravmag System Improved Gravmag System > --- UTILITY ---------- Advanced Heat Sink Energy Well Visual Processing Unit Improved Targeting Computer Target Analyzer Core Analyzer > --- WEAPON ----------- Gatling Laser Gatling Laser Force Rifle > --- INVENTORY -------- Drone Bay Shock Rifle Shock Rifle Heavy EM Shotgun Chainsword [Rating: 56] Favorites ----------- Power Ion Engine Engine Ion Engine Power Core Nuclear Core Propulsion Aluminum Leg Treads Light Treads Leg Aluminum Leg Wheel Compact Wheel Hover Unit Improved Gravmag System Flight Unit Xenon Bombardment Thruster Utility Improved Light Armor Plating Device Seismic Detector Storage Small Storage Unit Processor Improved Signal Interpreter Protection Improved Light Armor Plating Weapon High-powered Shotgun Energy Gun Medium Laser Energy Cannon Ion Cannon Ballistic Gun High-powered Shotgun Launcher Advanced EMP Blaster Special Weapon Enhanced Flamer Impact Weapon Great Maul Slashing Weapon Chainsword Build | -11 -10 -10 -10 -9 -8 -8 -7 -7 -7 -6 ------- Run | Yrd Mat Min Exi Min Mat Sto Fac Low Low Fac Slots Evolved 8 | . . . . . 4 . 2 . . 2 Power 1 | . . . . . . . . . . 1 Propulsion 2 | . . . . . 2 . . . . . Utility 4 | . . . . . 2 . 1 . . 1 Weapon 1 | . . . . . . . 1 . . . Parts Attached 89 | 7 2 3 . 2 12 14 8 7 . 34 Power 10 | 1 . . . . 3 1 . 1 . 4 Engine 6 | 1 . . . . 2 1 . . . 2 Core 4 | . . . . . 1 . . 1 . 2 Reactor . | . . . . . . . . . . . Propulsion 27 | 2 1 2 . 1 3 6 2 1 . 9 Treads 6 | . . 2 . . 1 3 . . . . Leg 13 | 2 1 . . 1 2 3 2 1 . 1 Wheel 2 | . . . . . . . . . . 2 Hover 5 | . . . . . . . . . . 5 Flight 1 | . . . . . . . . . . 1 Utility 25 | 2 . . . . 3 2 4 2 . 12 Device 10 | 1 . . . . . . 2 1 . 6 Storage 5 | 1 . . . . . 1 1 1 . 1 Processor 6 | . . . . . . 1 . . . 5 Hackware . | . . . . . . . . . . . Protection 4 | . . . . . 3 . 1 . . . Artifact . | . . . . . . . . . . . Weapon 27 | 2 1 1 . 1 3 5 2 3 . 9 Energy Gun 12 | . 1 . . 1 . 1 . 1 . 8 Energy Cannon 2 | . . . . . 1 . 1 . . . Ballistic Gun 7 | 2 . 1 . . . 3 1 . . . Ballistic Cannon . | . . . . . . . . . . . Launcher 3 | . . . . . 1 1 . 1 . . Special Weapon 1 | . . . . . . . . 1 . . Impact Weapon 1 | . . . . . 1 . . . . . Slashing Weapon 1 | . . . . . . . . . . 1 Piercing Weapon . | . . . . . . . . . . . Special Melee Weapon . | . . . . . . . . . . . Unidentified Prototypes 4 | . . . . . . 3 . . . 1 Corrupted Parts 1 | . . . . . . . . 1 . . System Corruption 9 | . . . . . . . . 9 . . Parts Lost 41 | . 1 1 . . 1 6 2 13 . 17 Power 6 | . . . . . 1 . . 2 . 3 Propulsion 19 | . 1 1 . . . 4 1 5 . 7 Utility 10 | . . . . . . 2 1 3 . 4 Weapon 6 | . . . . . . . . 3 . 3 Highest Loss Streak 9 | . 1 1 . . 1 2 2 9 . 9 To Critical Strikes . | . . . . . . . . . . . Average Backups 7 | 3 4 7 8 8 7 7 9 8 5 4 Power . | . 1 1 1 1 1 1 1 . . . Propulsion 1 | 1 2 1 2 2 1 1 . 1 . . Utility 1 | . . 1 2 2 1 . 2 3 1 . Weapon 3 | . 1 3 3 3 4 4 3 3 4 3 Tool/Special . | . . . . . . . . . . . Unused Backups 18 | . . 3 . 1 6 4 1 1 . 2 Power 3 | . . . . . 1 2 . . . . Propulsion . | . . . . . . . . . . . Utility 6 | . . 2 . . 2 . . 1 . 1 Weapon 9 | . . 1 . 1 3 2 1 . . 1 Tool/Special . | . . . . . . . . . . . Average Slot Usage (%) 87 | . 98 99 100 100 97 95 90 80 38 71 Engine 6 | . 14 14 14 14 7 1 7 4 . 3 Core 1 | . . . . . 1 7 . . . 1 Treads 5 | . . 7 28 18 13 6 7 . . . Leg 18 | . 26 20 . 9 21 28 21 21 7 6 Hover 1 | . . . . . . . . . . 9 Device 9 | . 14 14 14 14 9 6 7 11 7 8 Storage 8 | . 14 14 14 14 9 9 7 7 7 1 Processor 6 | . . . . . . 2 7 7 7 21 Protection 6 | . . . . . 16 14 8 4 . . Energy Gun 5 | . 1 14 14 14 2 1 4 . . 11 Energy Cannon 2 | . . . . . 8 3 1 5 . . Ballistic Gun 9 | . 26 14 14 14 4 12 13 9 . . Peak Build Rating 56 | 7 7 8 8 9 22 24 36 37 15 56 Average Rating 23 | 5 6 7 8 8 20 21 29 29 15 39 On Entrance 13 | . 7 7 8 8 9 21 23 36 15 15 Avg Prop Armor Cover (%) 7 | . . . . 11 9 6 6 . . 7 Naked Turns . | . . . . . . . . . . . Heaviest Build 42 | 15 15 16 16 17 28 28 37 42 13 34 Greatest Support 48 | 20 20 40 40 40 37 47 48 48 15 35 Greatest Overweight (x) 4 | . 1 1 . 1 . 1 1 4 . 3 Average Overweight (x) . | . . . . . . . . . . . Largest Inventory Capacity 10 | 8 8 8 8 8 8 10 10 10 10 10 Average Capacity 8 | 7 8 8 8 8 8 8 10 9 10 5 Most Carried 10 | 4 7 8 8 8 8 10 10 10 5 6 Average Carried 7 | 3 4 7 8 7 7 7 9 8 5 4 Final Capacity 10 | 8 8 8 8 8 8 10 10 10 10 5 Final Carried 9 | 4 7 8 8 8 8 9 9 5 5 5 Class Distribution -------------------- 40% | Scavenger-Mutant 34% | Mutant 15% | Scavenger-Tank 4% | Scavenger-Gunner Dominant Class ---------------- Mutant | -10/Materials Mutant | -10/Mines Mutant | -10/Exiles Mutant | -9/Mines Scavenger-Mutant | -8/Materials Scavenger-Mutant | -8/Storage Scavenger-Tank | -7/Factory Scavenger-Tank | -7/Lower Caves Mutant | -7/Lower Caves Scavenger-Mutant | -6/Factory Resources | -11 -10 -10 -10 -9 -8 -8 -7 -7 -7 -6 ----------- Run | Yrd Mat Min Exi Min Mat Sto Fac Low Low Fac Matter Collected 2379 | 290 213 133 . 83 292 480 165 278 . 445 Remotely . | . . . . . . . . . . . Salvage Created 3241 | 66 228 127 . 171 445 942 165 635 . 462 Parts 183 | 7 11 8 . 13 30 51 6 26 . 31 Haulers Intercepted 2 | . . . . . . 2 . . . . Recyclers Shooed 5 | . . . . 4 . 1 . . . . Parts Field Recycled . | . . . . . . . . . . . Retrieved Matter . | . . . . . . . . . . . Parts Self-Destructed 23 | . . . . . . . . 23 . . Prevented 2 | . . . . . . . . 2 . . Parts Restored . | . . . . . . . . . . . Kills | -11 -10 -10 -10 -9 -8 -8 -7 -7 -7 -6 ------- Run | Yrd Mat Min Exi Min Mat Sto Fac Low Low Fac Combat Hostiles Destroyed 77 | . 7 2 . 6 13 18 3 17 . 11 Melee 2 | . . . . . . . . 1 . 1 Guns 42 | . 7 2 . 6 2 10 3 8 . 4 Cannons 12 | . . . . . 6 2 . 4 . . AOE 18 | . . . . . 5 6 . 1 . 6 Classes Destroyed 14 | 1 2 2 . . 4 3 . . . 2 Worker 5 | . . 1 . . . 4 . . . . Builder 1 | . . . . . . 1 . . . . Tunneler 3 | 3 . . . . . . . . . . Hauler 2 | . . . . . . 2 . . . . Recycler 3 | . . . . . . 2 . . . 1 Operator 2 | . . . . . 1 . . . . 1 Watcher 3 | . . . . . 1 1 . . . 1 Swarmer 27 | . 3 . . 3 4 4 . 6 . 7 Saboteur 1 | . . . . . . . . . . 1 Grunt 29 | . 4 . . 3 3 7 2 9 . 1 Sentry 15 | . . 2 . . 3 7 1 2 . . Specialist 2 | . . . . . 2 . . . . . Hunter 1 | . . . . . 1 . . . . . Programmer 2 | . . . . . . . . . . 2 Best Kill Streak 11 | 3 5 2 . 3 4 11 2 10 . 4 Combat Bots Only 10 | . 5 2 . 3 4 8 2 10 . 4 Max Kills in Single Turn 4 | 1 1 1 . 1 3 3 1 2 . 4 Gunslinging . | . . . . . . . . . . . Exploded 4 | . . . . . 3 3 . 1 . 4 Melee 1 | . . . . . . . . 1 . 1 Uniques/NPCs Destroyed . | . . . . . . . . . . . Combat | -11 -10 -10 -10 -9 -8 -8 -7 -7 -7 -6 -------- Run | Yrd Mat Min Exi Min Mat Sto Fac Low Low Fac Hostile Shots Fired 572 | . 45 14 . 28 75 72 34 149 . 155 Missed 184 | . 8 4 . 9 21 16 19 39 . 68 Hits 388 | . 37 10 . 19 54 56 15 110 . 87 Melee 1 | . . . . . . . . . . 1 Projectile 387 | . 37 10 . 19 54 56 15 110 . 86 Critical Strikes 13 | . 1 . . 1 4 4 . 2 . 1 Part Disruptions 1 | . . . . . . . . . . 1 Damage Taken 6587 | . 409 151 . 219 756 1238 152 1793 . 1869 Core 1599 | . 92 48 . 33 120 120 6 325 . 855 Absorbed by Shields . | . . . . . . . . . . . Regen/Repaired (Parts) 148 | . . . . . . 148 . . . . Core Remaining (%) 59 | 100 . . . 30 . 56 . . 52 . Volleys Fired 194 | 8 30 8 . 19 32 46 9 24 . 18 Largest 3 | 2 2 2 . 2 2 2 3 3 . 3 Hottest 240 | 40 40 70 . 88 125 85 103 155 . 240 Shots Fired 398 | 16 60 16 . 38 54 89 25 56 . 44 Gun 315 | 16 60 16 . 38 26 71 25 25 . 38 Cannon 53 | . . . . . 21 8 . 20 . 4 Launcher 26 | . . . . . 7 10 . 7 . 2 Special 4 | . . . . . . . . 4 . . Kinetic 230 | 16 60 8 . 19 15 70 18 24 . . Thermal 123 | . . 8 . 19 32 8 . 25 . 31 Explosive 17 | . . . . . 7 10 . . . . Electromagnetic 28 | . . . . . . 1 7 7 . 13 Robot Hit Streak 16 | 5 14 8 . 4 6 16 8 7 . 14 Robot Miss Streak 10 | 5 2 3 . 4 3 5 8 10 . 4 Penetration Max . | . . . . . . . . . . . Secondary Targets 3 | . 2 . . . . 1 . . . . Max Gunslinging Chain 1 | . 1 . . . . 1 . . . . Shots Hit Robots 272 | 8 48 9 . 19 29 60 19 46 . 34 Core Hits 182 | 3 11 6 . 9 22 51 13 42 . 25 Critical Kills . | . . . . . . . . . . . Critical Parts Destroyed 3 | . . . . . . 1 . 2 . . Critical Strikes 5 | . . . . 1 . 1 . 2 . 1 Burn 1 | . . . . 1 . . . . . . Destroy 1 | . . . . . . 1 . . . . Smash 2 | . . . . . . . . 2 . . Sever 1 | . . . . . . . . . . 1 Melee Attacks 27 | . . . . . . . . 20 . 7 Impact 20 | . . . . . . . . 20 . . Slashing 7 | . . . . . . . . . . 7 Piercing . | . . . . . . . . . . . Sneak Attacks 1 | . . . . . . . . 1 . . Combat Hostiles 1 | . . . . . . . . 1 . . Follow-up Attacks . | . . . . . . . . . . . Damage Inflicted 7389 | 99 619 136 . 286 917 2212 329 1476 . 1315 Guns 3879 | 99 619 134 . 276 134 1189 329 476 . 623 Cannons 1051 | . . . . . 394 166 . 408 . 83 Explosions 1855 | . . . . . 385 852 . 191 . 427 Melee 529 | . . . . . . . . 355 . 174 Ramming 29 | . . 2 . 10 4 5 . . . 8 Kinetic 2879 | 99 619 60 . 164 74 1165 222 476 . . Thermal 2038 | . . 74 . 112 454 223 . 454 . 721 Explosive 1320 | . . . . . 385 795 . . . 140 Electromagnetic 594 | . . . . . . 24 107 191 . 272 Impact 355 | . . . . . . . . 355 . . Slashing 174 | . . . . . . . . . . 174 Piercing . | . . . . . . . . . . . Highest Corruption 9 | . . . . . . 9 . 9 9 7 Average Corruption 7 | . . . . . . 9 . 9 9 3 Corruption Purged . | . . . . . . . . . . . Corruption Blocked . | . . . . . . . . . . . Effects 19 | . . . . . . 7 . 5 3 4 Message Errors 4 | . . . . . . 1 . 1 1 1 Matter Fused 1 | . . . . . . 1 . . . . Heat Flow Errors 5 | . . . . . . 1 . 2 1 1 Energy Discharges 4 | . . . . . . 2 . . 1 1 Data Loss (minor) 2 | . . . . . . 1 . 1 . . Data Loss (major) 1 | . . . . . . . . . . 1 Misfires 1 | . . . . . . 1 . . . . Alerts 1 | . . . . . . . . 1 . . Overload Shots . | . . . . . . . . . . . Overflow Damage 326 | . . . . . . 47 . 131 . 148 Projectiles 19 | . . . . . . 19 . . . . Explosions 176 | . . . . . . 28 . . . 148 Melee 131 | . . . . . . . . 131 . . Knockbacks . | . . . . . . . . . . . Impact . | . . . . . . . . . . . Kinetic . | . . . . . . . . . . . Secondary . | . . . . . . . . . . . Self-Inflicted Damage 446 | . . . . . 23 44 . . . 379 Shots 6 | . . . . . 1 1 . . . 4 Rammed 6 | . . . . 2 . . 1 . . 3 Targets Rammed 14 | . . 1 . 5 1 3 1 . . 3 Kicked 8 | . . 1 . 3 1 3 . . . . Crushed . | . . . . . . . . . . . Highest Temperature 306 | . 2 79 . 306 270 111 81 136 150 298 Average Temperature 75 | . 1 34 . 137 84 36 37 64 83 96 Received Heat Transfer 1494 | . 189 54 . 126 108 414 69 342 . 192 Effects 2 | . . . . 1 1 . . . . . Energy Bleed 1 | . . . . 1 . . . . . . Interference 1 | . . . . . 1 . . . . . Siege Activations . | . . . . . . . . . . . Martial Activations . | . . . . . . . . . . . Shielding Activations . | . . . . . . . . . . . Robots Disrupted . | . . . . . . . . . . . Combat Hostiles . | . . . . . . . . . . . Robots Corrupted 2 | . . . . . . . . 2 . . Combat Hostiles 2 | . . . . . . . . 2 . . Parts Fried 3 | . . . . . . . . 2 . 1 Impact Corruptions 6 | . . . . . . . . 6 . . Robots Melted 1 | . . . . . . . . 1 . . Combat Hostiles 1 | . . . . . . . . 1 . . Parts Melted 4 | . . . . 1 2 . . 1 . . Heat Transferred 3943 | . . 222 . 407 777 309 . 1120 . 1108 Parts Sabotaged 3 | . . . . . . . . . . 3 Parts Stolen . | . . . . . . . . . . . Parts Stripped . | . . . . . . . . . . . Power Chain Reactions 2 | . . . . . . 1 . 1 . . Alert | -11 -10 -10 -10 -9 -8 -8 -7 -7 -7 -6 ------- Run | Yrd Mat Min Exi Min Mat Sto Fac Low Low Fac Maximum Alert Level 1 | . . . . . . 1 . . . 1 Low Security (%) 85 | 100 100 100 . 100 100 70 100 . . 63 Level 1 14 | . . . . . . 29 . . . 36 Level 2 . | . . . . . . . . . . . Level 3 . | . . . . . . . . . . . Level 4 . | . . . . . . . . . . . Level 5 . | . . . . . . . . . . . High Security . | . . . . . . . . . . . Max Security . | . . . . . . . . . . . Peak Influence 365 | 10 120 32 . 90 171 365 156 . . 276 Initial 156 | . . 27 . . 35 55 156 . . 16 Average 83 | 1 46 4 . 25 80 133 73 . . 127 Influence Increases 2479 | 15 170 45 . 140 404 686 70 380 . 569 Destroy 0b10 Robot/C 1540 | . 140 40 . 120 260 360 60 340 . 220 Destroy 0b10 Robot/NC 105 | 15 . 5 . . 10 60 . . . 15 Destroy Leader 280 | . 30 . . 20 72 106 10 10 . 32 Successful Hack 33 | . . . . . . 18 . . . 15 Disable Machine 285 | . . . . . 30 60 . . . 195 Destroy Structure 191 | . . . . . 32 82 . . . 77 Lose Combat Pursuer 45 | . . . . . . . . 30 . 15 Influence Decreases 2315 | 15 100 115 . 50 363 472 415 296 57 432 Entered New Map 391 | . . 43 . . 55 76 189 . 17 11 Time Decay 1519 | 15 90 67 . 50 298 336 206 166 40 251 Lost Part 400 | . 10 . . . 10 60 20 130 . 170 Lost Ally 5 | . . 5 . . . . . . . . Squads Dispatched 8 | . 1 . . . 2 2 . . . 3 Investigation 2 | . 1 . . . 1 . . . . . Extermination 2 | . . . . . . . . . . 2 Reinforcement 4 | . . . . . 1 2 . . . 1 Assault . | . . . . . . . . . . . Garrison . | . . . . . . . . . . . Intercept . | . . . . . . . . . . . Searches Triggered . | . . . . . . . . . . . Construction Impeded 1 | . . . . . . 1 . . . . Haulers Reinforced 1 | . . . . . . . . . . 1 Active Scanning Responses . | . . . . . . . . . . . Cargo Convoy Interrupts 1 | . . . . . . . . . . 1 Stealth | -11 -10 -10 -10 -9 -8 -8 -7 -7 -7 -6 --------- Run | Yrd Mat Min Exi Min Mat Sto Fac Low Low Fac Distress Signals 4 | . . . . . 1 2 . . . 1 Communications Jammed . | . . . . . . . . . . . Distress Signals . | . . . . . . . . . . . Times Spotted 112 | . 8 2 . 6 17 25 5 16 . 33 Peak Tracking Total 15 | . 5 2 . 3 5 4 4 11 . 15 Tactical Retreats 3 | . . . . . . . . 2 . 1 Traps | -11 -10 -10 -10 -9 -8 -8 -7 -7 -7 -6 ------- Run | Yrd Mat Min Exi Min Mat Sto Fac Low Low Fac Traps Triggered 2 | . 1 . . . . 1 . . . . Indirectly . | . . . . . . . . . . . Trap Hack Attempts . | . . . . . . . . . . . Triggered . | . . . . . . . . . . . Disarmed . | . . . . . . . . . . . Reprogrammed . | . . . . . . . . . . . Reused . | . . . . . . . . . . . Traps Extracted . | . . . . . . . . . . . Installed . | . . . . . . . . . . . Triggered . | . . . . . . . . . . . Machines | -11 -10 -10 -10 -9 -8 -8 -7 -7 -7 -6 ---------- Run | Yrd Mat Min Exi Min Mat Sto Fac Low Low Fac Machines Disabled 19 | . . . . . 2 4 . . . 13 Max in Single Turn 7 | . . . . . 1 2 . . . 7 Machines Repaired . | . . . . . . . . . . . Machines Dismantled . | . . . . . . . . . . . Machines Sabotaged . | . . . . . . . . . . . Overloaded Fab Kills . | . . . . . . . . . . . Hacking | -11 -10 -10 -10 -9 -8 -8 -7 -7 -7 -6 --------- Run | Yrd Mat Min Exi Min Mat Sto Fac Low Low Fac Machines Accessed 15 | . 1 2 . . 1 6 3 1 . 1 Terminals 11 | . 1 1 . . 1 3 3 1 . 1 Fabricators . | . . . . . . . . . . . Repair Stations 1 | . . . . . . 1 . . . . Recycling Units 2 | . . . . . . 2 . . . . Scanalyzers . | . . . . . . . . . . . Garrison Access . | . . . . . . . . . . . Total Hacks 44 | . 1 2 . . 6 23 6 5 . 1 Successful 33 | . 1 2 . . 5 17 2 5 . 1 Failed 11 | . . . . . 1 6 4 . . . Catastrophic . | . . . . . . . . . . . Database Lockouts . | . . . . . . . . . . . Manual 1 | . . 1 . . . . . . . . Terminals 30 | . 1 1 . . 6 10 6 5 . 1 Fabricators . | . . . . . . . . . . . Repair Stations 4 | . . . . . . 4 . . . . Recycling Units 9 | . . . . . . 9 . . . . Scanalyzers . | . . . . . . . . . . . Garrison Access . | . . . . . . . . . . . Terminal Hacks 23 | . 1 2 . . 5 7 2 5 . 1 Record 16 | . . . . . 4 4 2 5 . 1 Prototype ID Bank 1 | . . . . . . 1 . . . . Open Door 1 | . . 1 . . . . . . . . Alert Level 2 | . . 1 . . 1 . . . . . Security Status 1 | . . . . . . 1 . . . . Hauler Manifests 1 | . 1 . . . . . . . . . Zone Layout 1 | . . . . . . 1 . . . . Fabricator Hacks . | . . . . . . . . . . . Repair Station Hacks 4 | . . . . . . 4 . . . . Scan Component 2 | . . . . . . 2 . . . . Repair 2 | . . . . . . 2 . . . . Recycling Unit Hacks 6 | . . . . . . 6 . . . . Process 1 | . . . . . . 1 . . . . Report Inventory 3 | . . . . . . 3 . . . . Retrieve Matter 1 | . . . . . . 1 . . . . Retrieve Components 1 | . . . . . . 1 . . . . Scanalyzer . | . . . . . . . . . . . Garrison Access Hacks . | . . . . . . . . . . . Unauthorized Hacks . | . . . . . . . . . . . Terminals . | . . . . . . . . . . . Fabricators . | . . . . . . . . . . . Repair Stations . | . . . . . . . . . . . Recycling Units . | . . . . . . . . . . . Scanalyzers . | . . . . . . . . . . . Garrison Access . | . . . . . . . . . . . Data Cores Recovered 2 | . . . . . 1 . . . . 1 Used 2 | . . . . . 1 . . . . 1 Hacking Detections 6 | . . . . . 1 2 2 . . 1 Full Trace Events 1 | . . . . . 1 . . . . . Feedback Events . | . . . . . . . . . . . Feedback Blocked . | . . . . . . . . . . . Robot Schematics Acquired . | . . . . . . . . . . . Robots Built . | . . . . . . . . . . . Authchips . | . . . . . . . . . . . Time . | . . . . . . . . . . . Total Robot Build Rating . | . . . . . . . . . . . Part Schematics Acquired . | . . . . . . . . . . . Parts Built . | . . . . . . . . . . . Authchips . | . . . . . . . . . . . Time . | . . . . . . . . . . . Total Part Build Rating . | . . . . . . . . . . . Part Studies Acquired . | . . . . . . . . . . . Parts Repaired 2 | . . . . . . 2 . . . . Time 52 | . . . . . . 52 . . . . Parts Recycled . | . . . . . . . . . . . Recycled Matter 309 | . . . . . . 309 . . . . Retrieved Matter 389 | . . . . . . 389 . . . . Retrieved Components 9 | . . . . . . 9 . . . . Parts Scanalyzed . | . . . . . . . . . . . Part Schematics Acquired . | . . . . . . . . . . . Parts Damaged . | . . . . . . . . . . . Bothacking | -11 -10 -10 -10 -9 -8 -8 -7 -7 -7 -6 ------------ Run | Yrd Mat Min Exi Min Mat Sto Fac Low Low Fac Used RIF Installer . | . . . . . . . . . . . Robots Hacked . | . . . . . . . . . . . Non-combat . | . . . . . . . . . . . Combat . | . . . . . . . . . . . Robot Hacks Applied . | . . . . . . . . . . . Relay Couplers Released . | . . . . . . . . . . . Fabnet Peak Effective % . | . . . . . . . . . . . Robots Rewired . | . . . . . . . . . . . Allies Hacked . | . . . . . . . . . . . Hacks Repelled . | . . . . . . . . . . . Allies | -11 -10 -10 -10 -9 -8 -8 -7 -7 -7 -6 -------- Run | Yrd Mat Min Exi Min Mat Sto Fac Low Low Fac Total Allies 2 | . . 2 . . . . . . . . Largest Group 2 | . . 2 . . . . . . . . Highest-Rated Group 38 | . . 38 . . . . . . . . Highest-Rated Ally 31 | . . 31 . . . . . . . . Total Orders . | . . . . . . . . . . . Ally Attacks 6 | . . 6 . . . . . . . . Total Damage 43 | . . 43 . . . . . . . . Kills . | . . . . . . . . . . . Allies Corrupted . | . . . . . . . . . . . Allies Melted . | . . . . . . . . . . . Intel | -11 -10 -10 -10 -9 -8 -8 -7 -7 -7 -6 ------- Run | Yrd Mat Min Exi Min Mat Sto Fac Low Low Fac Active Infowar (turns) 3975 | 26 294 555 85 172 721 615 145 538 . 824 Optics 755 | . . . . . . . . . . 755 Terrain 669 | . . . . . . . 145 524 . . Traps 69 | . . . . . . . . . . 69 Seismic 2468 | 26 294 555 85 172 721 615 . . . . Jamming 333 | . . . . . . . . 14 . 319 ECM 2 | . . . . . . . . . . 2 Robot Analysis Total . | . . . . . . . . . . . Derelict Logs Recovered 3 | . . 1 . . . . . 2 . . Drone Launches 2 | . . . . . . . . . . 2 Drone Recoveries . | . . . . . . . . . . . Exploration | -11 -10 -10 -10 -9 -8 -8 -7 -7 -7 -6 ------------- Run | Yrd Mat Min Exi Min Mat Sto Fac Low Low Fac Turns Passed 5086 | 130 294 555 85 172 721 808 480 808 92 941 Spaces Moved 3094 | 79 152 399 54 68 397 396 317 511 77 644 Core 75 | 3 . . . . . . . 1 . 71 Treads 282 | . . 86 54 32 . . 78 32 . . Legs 2546 | 76 152 313 . 36 397 396 239 478 77 382 Wheels 16 | . . . . . . . . . . 16 Hover 175 | . . . . . . . . . . 175 Flight . | . . . . . . . . . . . Fastest Speed 50 | 50 120 120 160 120 120 120 120 120 120 50 Average Speed 120 | 117 122 128 160 143 123 121 130 122 120 99 Slowest Speed 250 | 120 190 190 160 190 125 190 190 250 120 200 Overloaded Moves . | . . . . . . . . . . . Propulsion Burnouts . | . . . . . . . . . . . Robots Hopped . | . . . . . . . . . . . Potential Cave-ins . | . . . . . . . . . . . Cave-ins Triggered 1 | . . . . . . 1 . . . . Exploration Rate (%) 29 | 5 28 71 9 14 24 64 10 73 13 12 Regions Visited 10 Branch Regions 6 Pre-discovered Areas 1 | . . . . . . . . 1 . . Known Exits Taken 4 | . . . . . . 1 1 1 1 . Unknown Exits Taken 6 | 1 1 1 1 1 1 . . . . . Scrap Searched 4 | . . 1 . . . . . 3 . . Spaces Dug . | . . . . . . . . . . . Terrain Destroyed 209 | . . . . . 32 78 . 2 . 97 Melee . | . . . . . . . . . . . Projectile 2 | . . . . . 2 . . . . . AOE 207 | . . . . . 30 78 . 2 . 97 Terrain Rammed . | . . . . . . . . . . . Walls Destroyed . | . . . . . . . . . . . Machines Disabled . | . . . . . . . . . . . Actions | -11 -10 -10 -10 -9 -8 -8 -7 -7 -7 -6 --------- Run | Yrd Mat Min Exi Min Mat Sto Fac Low Low Fac Total 4007 | 97 199 426 53 102 572 631 364 599 76 888 Wait 407 | . 13 4 . 2 97 139 10 19 . 123 Move 3084 | 78 151 398 53 67 396 395 316 510 76 644 Hop . | . . . . . . . . . . . Pick Up 72 | 4 3 7 . 2 15 14 8 7 . 12 Fast Attach 47 | 7 1 . . . 1 5 3 1 . 29 Attach 29 | . . 1 . . 4 5 3 8 . 8 Detach 11 | . . . . . . 1 . 2 . 8 Swap 57 | . 1 2 . 4 13 11 6 6 . 14 Drop 65 | . . 5 . 3 13 12 8 2 . 22 Fire 194 | 8 30 8 . 19 32 46 9 24 . 18 Melee 27 | . . . . . . . . 20 . 7 Ram 3 | . . . . . . . . . . 3 Kick 8 | . . 1 . 3 1 3 . . . . Crush 3 | . . . . 2 . . 1 . . . Escape Stasis . | . . . . . . . . . . . Rewire . | . . . . . . . . . . . Trap . | . . . . . . . . . . . Miscellaneous . | . . . . . . . . . . . Route ------- -11/Scrapyard -10/Materials -10/Mines -10/Exiles -9/Mines -8/Materials -8/Storage -7/Factory -7/Lower Caves -7/Lower Caves -6/Factory History --------- Turn | Location | Event 20 | -11/Scrapyard | Discovered new exit (range 16) 131 | -11/Scrapyard | Entered Materials 303 | -10/Materials | Build established: Mutant 398 | -10/Materials | Discovered new exit (range 15) 425 | -10/Materials | Entered Mines 532 | -10/Mines | Found a hidden stash of uninstalled traps 591 | -10/Mines | Found the Drone Emporium 755 | -10/Mines | Learned Materials terminal intel 827 | -10/Mines | Core integrity fell below 50% 974 | -10/Mines | Deemed a non-threat by the Exiles lab entrance 974 | -10/Mines | Discovered new exit (range 5) 980 | -10/Mines | Entered Exiles 980 | -10/Exiles | Found Exiles lab destroyed 1006 | -10/Exiles | Discovered new exit (range 15) 1065 | -10/Exiles | Entered Mines 1105 | -9/Mines | Discovered new exit (range 7) 1237 | -9/Mines | Entered Materials 1237 | -8/Materials | Evolved 4 slots: Propulsion x2, Utility x2 1238 | -8/Materials | Loaded intel: 12 terminal locations 1464 | -8/Materials | Build established: Scavenger-Mutant 1939 | -8/Materials | Discovered new exit (range 5) 1958 | -8/Materials | Entered Storage 2165 | -8/Storage | Repaired Aluminum Leg 2192 | -8/Storage | Repaired Aluminum Leg 2563 | -8/Storage | Destroyed 8 combat bots 2573 | -8/Storage | Crushed by falling debris 2748 | -8/Storage | Discovered new exit (range 16) 2765 | -8/Storage | Identified exit to Factory 2766 | -8/Storage | Entered Factory 2766 | -7/Factory | Evolved 2 slots: Utility x1, Weapon x1 3195 | -7/Factory | Discovered new exit (range 5) 3201 | -7/Factory | Identified exit to Lower Caves 3246 | -7/Factory | Entered Lower Caves 3426 | -7/Lower Caves | Build established: Scavenger-Tank 3474 | -7/Lower Caves | Learned location of Extension (-5) 3763 | -7/Lower Caves | Attracted the attention of an 0b10 base 3828 | -7/Lower Caves | Destroyed 10 combat bots 3835 | -7/Lower Caves | Lost 9 parts (1p4n2u2w) 3932 | -7/Lower Caves | Lost 3 parts (1p1n1u) 3978 | -7/Lower Caves | Learned Extension emergency access door positions 3978 | -7/Lower Caves | Learned Armory stockpile data 3978 | -7/Lower Caves | Learned Factory security intel 3978 | -7/Lower Caves | Learned Armory terminal intel 4041 | -7/Lower Caves | Discovered new exit (range 11) 4053 | -7/Lower Caves | Identified exit to Lower Caves 4054 | -7/Lower Caves | Entered another Lower Caves area 4066 | -7/Lower Caves | Build established: Mutant 4135 | -7/Lower Caves | Discovered new exit (range 10) 4144 | -7/Lower Caves | Identified exit to Factory 4146 | -7/Lower Caves | Entered Factory 4146 | -6/Factory | Evolved 2 slots: Power x1, Utility x1 4852 | -6/Factory | Lost 7 parts (1p3n2u1w) 5046 | -6/Factory | Cargo convoy interrupted 5075 | -6/Factory | Core integrity fell below 50% 5082 | -6/Factory | Core integrity fell below 20% 5087 | -6/Factory | Destroyed by Y-54 Guardian with Gatling Laser Last Messages --------------- 05065_ Gatling Laser destroyed. 05066_ System corrupted: Heat flow error (+136). 05067_ Gravmag System blown off. 05067_ Energy Well blown off. 05067_ Force Rifle blown off. 05067_ E-15 Imp destroyed. 05068_ Slug penetrates Assembly Bed. 05068_ Slug penetrates Wall. 05071_ Penetrated by Slug. 05071_ Com. Wheel destroyed. 05076_ Imp. Gravmag System destroyed. 05076_ Imp. Targeting Computer destroyed. 05080_ Slammed into K-01 Serf. 05080_ Penetrated by Slug. 05080_ Com. Wheel destroyed. 05081_ Slug penetrates Wall. 05081_ K-01 Serf destroyed. 05081_ Slug penetrates Wall. 05083_ Adv. Heat Sink destroyed. 05083_ Slug penetrates Door. Map ----- +----------------------------------------------------+ | ?# # ## """ # ! " | | ?# + ## """ ! # "% | | ?# # ## # #################/ | | ########+###### #####+##### #???????????????? | | #????????????????" | | #????????????????" | | #????????????????? | | #????????????????? | | #????????????????? | | ###+################### #????????????????? | | # # # * #????????????????? | | ##### # """ #=%= #????????????????? | | ????# # ! """ " ! #????????????????? | | ????# # """ #% #????????????????? | | ????# """ """ # # #????????????????? | | ????# """ """ # """ # #????????????????? | | ????# """ """ # """ # #????????????????? | | ????# # """ # #????????????????? | | ????# """ """ # # #????????????????? | | ????# """ """ ########## #????????????????? | | ????# """ """ #????????# #????????????????? | | ????# #????????# #????????????????? | | ????####+#########??????### ###??????????????? | | ???????# #??????????????# #??????????????? | | ???????# #??????????????# #??????????????? | | ???????# #??????????????#@ Y #??????????????? | | ???????# #??????????????# #??????????????? | | ???????# #??????????????# +??????????????? | | ???????# #??????????????# #??????????????? | | ???????# #??????????????# #??????????????? | | ???????# #??????????????# A #??????????????? | | ######## #??????????????# #??????????????? | | # #??????????????## ##??????????????? | | """""" # ###############?# #???????????????? | | """""" # ? #???????????????? | | """""" # ? ???????????????? | | """""" # """ ? ??????????????? | | + "G" ??? ?????????????? | | """""" # " " ??? ????????????? | | """""" # ? ??????????????? | | """""" # """ ????????????????? | | """""" ####### """????? ???????????????????? | | #?????? "" ????? ?????????????????????? | | #??????? ???????????????????????????? | | ########???????? """ ??????????????????????????? | | ???????????????? """???????????????????????????? | | ????????????????? ""????????????????????????????? | | ?????????????????????????????????????????????????? | | ?????????????????????????????????????????????????? | | ?????????????????????????????????????????????????? | +----------------------------------------------------+ Best States ------------- Heat Dissipation 56 Energy Generation 28 Energy Capacity 550 Matter Stores 300 Matter Capacity 300 Sight Range 18 Terrain Scan Range 16 Terrain Scan Density 10 ECM Strength 2 Jamming Range 12 Armor Coverage 300 Evasion (%) 55 Targeting Accuracy 6 Target Analysis 5 Core Analysis 6 Recoil Reduction 2 Item Schematics ----------------- None Robot Schematics ------------------ None Fabricated ------------ Nothing Repaired ---------- Aluminum Leg | 7% | -8/Storage Aluminum Leg | 27% | -8/Storage Studied --------- None Alien Tech Used ----------------- None Achievements -------------- Deductive Reasoning Dynamic Key Oh No You Don't! Challenges ------------ None Game ------ Seed ThunderUltimateGreatsword Manual? 0 Play Time 01:50:36 Cumulative 37.4 hours Start 2026.09.13 @ 18:54:36 End 2026.09.13 @ 23:12:13 Sessions 1 Manual Loads 0 Difficulty Rogue Special Mode None Game No. 20 Rogue 18 Adventurer 2 Explorer 0 Win Type - Total 0 Types 0/0/0/0/0/0/0/0/0/0 Lore% 10 Gallery% 22 Achievement% 16 Wizard Run 0 Options --------- Layout 0 ASCII 0 Keyboard 0 Movement Mouse Keybinds 0 Fullscreen 1 Font 18/SmallcapsGlow Map View 38x25 Zoom Use 98% Tactical HUD 1 Map Filters NONE Filters NONE Steam 1 RUN: 6c615e67-c4e3-481e-9b97-0ac42b4c01a3